[Event "Early-Titled-Tuesday-Blitz-February-06-2024"]
[Site "Chess.com"]
[Date "2024.02.06"]
[Round "8"]
[White "youngKID"]
[Black "rasmussvane"]
[Result "1/2-1/2"]
[WhiteElo "2821"]
[BlackElo "2970"]
[TimeControl "180+1"]
[EndTime "9:28:38 PST"]
[Termination "Game drawn by repetition"]

1. Nf3 {[%clk 0:03:00.9]} 1... d5 {[%clk 0:02:59.5]} 2. g3 {[%clk 0:03:00.9]}
2... Nf6 {[%clk 0:02:55.7]} 3. Bg2 {[%clk 0:03:01.3]} 3... e6 {[%clk 0:02:56]}
4. O-O {[%clk 0:03:01.3]} 4... Be7 {[%clk 0:02:56.4]} 5. d3 {[%clk 0:03:01.7]}
5... O-O {[%clk 0:02:55.8]} 6. Nbd2 {[%clk 0:03:02.3]} 6... Nc6 {[%clk 0:02:56]}
7. e4 {[%clk 0:03:02.9]} 7... dxe4 {[%clk 0:02:56.7]} 8. dxe4 {[%clk 0:03:03.8]}
8... e5 {[%clk 0:02:57.3]} 9. Nc4 {[%clk 0:03:02.5]} 9... Qxd1 {[%clk
0:02:52.4]} 10. Rxd1 {[%clk 0:03:03.4]} 10... Nxe4 {[%clk 0:02:53]} 11. Nfxe5
{[%clk 0:03:03.8]} 11... Nxe5 {[%clk 0:02:53.7]} 12. Nxe5 {[%clk 0:03:04.7]}
12... Nd6 {[%clk 0:02:54.3]} 13. c4 {[%clk 0:02:50.8]} 13... Bf6 {[%clk
0:02:44.5]} 14. f4 {[%clk 0:02:28.7]} 14... Bxe5 {[%clk 0:02:35.3]} 15. fxe5
{[%clk 0:02:29.6]} 15... Nxc4 {[%clk 0:02:35.8]} 16. e6 {[%clk 0:01:42]} 16...
Bxe6 {[%clk 0:02:26.9]} 17. b3 {[%clk 0:01:39.3]} 17... Nd6 {[%clk 0:01:52.5]}
18. Bf4 {[%clk 0:01:38.7]} 18... Rab8 {[%clk 0:01:50.3]} 19. Rac1 {[%clk
0:01:34.3]} 19... Rfc8 {[%clk 0:01:41.9]} 20. Rd2 {[%clk 0:01:10]} 20... Ne8
{[%clk 0:01:27.2]} 21. Rdc2 {[%clk 0:01:07.7]} 21... Kf8 {[%clk 0:01:15.3]} 22.
Bxc7 {[%clk 0:01:02.6]} 22... Nxc7 {[%clk 0:01:14.2]} 23. Rxc7 {[%clk
0:01:03.5]} 23... b6 {[%clk 0:01:13.6]} 24. Kf2 {[%clk 0:00:54.7]} 24... a5
{[%clk 0:01:11.5]} 25. h4 {[%clk 0:00:50.8]} 25... Rxc7 {[%clk 0:01:08.1]} 26.
Rxc7 {[%clk 0:00:51.7]} 26... Rc8 {[%clk 0:01:08.6]} 27. Rxc8+ {[%clk 0:00:32]}
27... Bxc8 {[%clk 0:01:07.7]} 28. Ke3 {[%clk 0:00:32.7]} 28... Ke7 {[%clk
0:01:05.9]} 29. Kd4 {[%clk 0:00:32.6]} 29... Kd6 {[%clk 0:01:04.4]} 30. a3
{[%clk 0:00:33.1]} 30... Be6 {[%clk 0:00:52.2]} 31. b4 {[%clk 0:00:33.4]} 31...
f6 {[%clk 0:00:45.2]} 32. bxa5 {[%clk 0:00:26.8]} 32... bxa5 {[%clk 0:00:45.2]}
33. Be4 {[%clk 0:00:25.9]} 33... Bg8 {[%clk 0:00:20.4]} 34. h5 {[%clk
0:00:18.9]} 34... Bf7 {[%clk 0:00:18.6]} 35. g4 {[%clk 0:00:11.6]} 35... Be6
{[%clk 0:00:13.8]} 36. Bf3 {[%clk 0:00:06.8]} 36... Bd7 {[%clk 0:00:06.9]} 37.
Bd1 {[%clk 0:00:06.5]} 37... Bc8 {[%clk 0:00:04.2]} 38. Be2 {[%clk 0:00:06.4]}
38... Be6 {[%clk 0:00:04.6]} 39. Bf3 {[%clk 0:00:06.8]} 39... Bf7 {[%clk
0:00:02.9]} 40. Be4 {[%clk 0:00:06.7]} 40... Be6 {[%clk 0:00:02.1]} 41. Bf3
{[%clk 0:00:07.4]} 1/2-1/2

[Event "Early-Titled-Tuesday-Blitz-February-06-2024"]
[Site "Chess.com"]
[Date "2024.02.06"]
[Round "8"]
[White "Bkmzzzzz"]
[Black "Viktor_Poddubnyi"]
[Result "1-0"]
[WhiteElo "2389"]
[BlackElo "2261"]
[TimeControl "180+1"]
[EndTime "9:28:38 PST"]
[Termination "Bkmzzzzz won on time"]

1. e4 {[%clk 0:03:00.9]} 1... g6 {[%clk 0:03:00.1]} 2. d4 {[%clk 0:03:00.2]}
2... Bg7 {[%clk 0:03:00.6]} 3. c3 {[%clk 0:03:00.9]} 3... d6 {[%clk 0:03:00.1]}
4. Nf3 {[%clk 0:02:59.8]} 4... Nf6 {[%clk 0:03:00.2]} 5. Bd3 {[%clk 0:02:59.3]}
5... O-O {[%clk 0:02:59.9]} 6. O-O {[%clk 0:02:59.8]} 6... Nc6 {[%clk
0:03:00.4]} 7. Re1 {[%clk 0:02:58.4]} 7... e5 {[%clk 0:03:00]} 8. d5 {[%clk
0:02:55.6]} 8... Ne7 {[%clk 0:02:59.3]} 9. h3 {[%clk 0:02:55.2]} 9... Nh5 {[%clk
0:02:54.3]} 10. Bg5 {[%clk 0:02:51.3]} 10... h6 {[%clk 0:02:46.5]} 11. Be3
{[%clk 0:02:49.3]} 11... Nf4 {[%clk 0:02:42.7]} 12. Bxf4 {[%clk 0:02:47.4]}
12... exf4 {[%clk 0:02:42.4]} 13. Na3 {[%clk 0:02:42.4]} 13... g5 {[%clk
0:02:40.8]} 14. Nh2 {[%clk 0:02:40.3]} 14... Ng6 {[%clk 0:02:39.2]} 15. Nc2
{[%clk 0:02:39.3]} 15... Bd7 {[%clk 0:02:34.2]} 16. Nd4 {[%clk 0:02:39.1]} 16...
Re8 {[%clk 0:02:09.5]} 17. Qh5 {[%clk 0:02:24.4]} 17... Ne5 {[%clk 0:01:59.9]}
18. Bc2 {[%clk 0:02:21.2]} 18... Qf6 {[%clk 0:01:48.6]} 19. Nf5 {[%clk
0:01:57.9]} 19... Bxf5 {[%clk 0:01:26.6]} 20. exf5 {[%clk 0:01:58.8]} 20... Re7
{[%clk 0:01:19.9]} 21. Rxe5 {[%clk 0:01:15.3]} 21... Rxe5 {[%clk 0:00:35.8]} 22.
Ng4 {[%clk 0:01:14.8]} 22... Qe7 {[%clk 0:00:35.8]} 23. f6 {[%clk 0:01:02.7]}
23... Bxf6 {[%clk 0:00:30.5]} 24. Nxh6+ {[%clk 0:00:36.2]} 24... Kf8 {[%clk
0:00:19.4]} 25. Nf5 {[%clk 0:00:35.7]} 25... Rxf5 {[%clk 0:00:18.9]} 26. Bxf5
{[%clk 0:00:36.6]} 26... Re8 {[%clk 0:00:17.7]} 27. Kh2 {[%clk 0:00:22.7]} 27...
Bg7 {[%clk 0:00:17.6]} 28. Rd1 {[%clk 0:00:19.6]} 28... Qf6 {[%clk 0:00:15.9]}
29. Bg4 {[%clk 0:00:18.1]} 29... Re5 {[%clk 0:00:14]} 30. b3 {[%clk 0:00:16.8]}
30... b5 {[%clk 0:00:10.8]} 31. c4 {[%clk 0:00:17.3]} 31... b4 {[%clk
0:00:07.7]} 32. Bf3 {[%clk 0:00:16.7]} 32... Qe7 {[%clk 0:00:06.4]} 33. Qg4
{[%clk 0:00:16.9]} 33... f5 {[%clk 0:00:04.2]} 34. Qh5 {[%clk 0:00:16.3]} 34...
Bf6 {[%clk 0:00:02.7]} 35. Qh6+ {[%clk 0:00:15.7]} 35... Bg7 {[%clk 0:00:02.5]}
36. Qg6 {[%clk 0:00:16]} 36... Bf6 {[%clk 0:00:02.5]} 37. Rb1 {[%clk 0:00:13.2]}
37... Bg7 {[%clk 0:00:02]} 38. Ra1 {[%clk 0:00:12.7]} 38... Qf6 {[%clk
0:00:01.9]} 39. Qh7 {[%clk 0:00:12.1]} 1-0

[Event "Early-Titled-Tuesday-Blitz-February-06-2024"]
[Site "Chess.com"]
[Date "2024.02.06"]
[Round "8"]
[White "GMBenjaminBok"]
[Black "LyonBeast"]
[Result "0-1"]
[WhiteElo "2980"]
[BlackElo "3162"]
[TimeControl "180+1"]
[EndTime "9:28:39 PST"]
[Termination "LyonBeast won by resignation"]

1. d4 {[%clk 0:03:00.9]} 1... Nf6 {[%clk 0:02:59.9]} 2. c4 {[%clk 0:03:01.1]}
2... g6 {[%clk 0:03:00.5]} 3. g3 {[%clk 0:03:00]} 3... c6 {[%clk 0:03:00.5]} 4.
Nf3 {[%clk 0:02:58.8]} 4... d5 {[%clk 0:03:00.8]} 5. cxd5 {[%clk 0:02:58.7]}
5... cxd5 {[%clk 0:03:01.1]} 6. Bg2 {[%clk 0:02:59.2]} 6... Bg7 {[%clk
0:03:01.8]} 7. Nc3 {[%clk 0:02:51.6]} 7... O-O {[%clk 0:03:02.3]} 8. Ne5 {[%clk
0:02:49.4]} 8... Nc6 {[%clk 0:03:02.9]} 9. Nxc6 {[%clk 0:02:39.6]} 9... bxc6
{[%clk 0:03:03.8]} 10. O-O {[%clk 0:02:39.7]} 10... Bf5 {[%clk 0:03:02.7]} 11.
Bf4 {[%clk 0:02:38.1]} 11... Nh5 {[%clk 0:02:59.1]} 12. Be3 {[%clk 0:02:33.8]}
12... c5 {[%clk 0:02:57.4]} 13. Nxd5 {[%clk 0:02:04.3]} 13... e6 {[%clk
0:02:56.2]} 14. Nf4 {[%clk 0:01:54.3]} 14... cxd4 {[%clk 0:02:56]} 15. Nxh5
{[%clk 0:01:54.2]} 15... gxh5 {[%clk 0:02:56.9]} 16. Bd2 {[%clk 0:01:18.2]}
16... Rb8 {[%clk 0:02:55.8]} 17. b3 {[%clk 0:01:09.1]} 17... h4 {[%clk 0:02:50]}
18. Rc1 {[%clk 0:01:06]} 18... h3 {[%clk 0:02:49]} 19. Bf3 {[%clk 0:01:04.8]}
19... e5 {[%clk 0:02:47.4]} 20. Rc5 {[%clk 0:00:58.4]} 20... Qd7 {[%clk
0:02:39.1]} 21. e4 {[%clk 0:00:53.7]} 21... Be6 {[%clk 0:02:32.5]} 22. Qe2
{[%clk 0:00:53.5]} 22... Rfc8 {[%clk 0:02:31]} 23. Rfc1 {[%clk 0:00:53]} 23...
Rxc5 {[%clk 0:02:31.1]} 24. Rxc5 {[%clk 0:00:53.9]} 24... Rc8 {[%clk 0:02:30.2]}
25. Bb4 {[%clk 0:00:45.8]} 25... Bf8 {[%clk 0:02:03.1]} 26. Rxc8 {[%clk
0:00:45.5]} 26... Qxc8 {[%clk 0:02:04]} 27. Bxf8 {[%clk 0:00:33.2]} 27... Kxf8
{[%clk 0:02:00.8]} 28. Qd2 {[%clk 0:00:33.5]} 28... Qc3 {[%clk 0:01:57.8]} 29.
Qxc3 {[%clk 0:00:19.8]} 29... dxc3 {[%clk 0:01:58.7]} 30. Bd1 {[%clk 0:00:20]}
30... Bg4 {[%clk 0:01:48.7]} 31. Bc2 {[%clk 0:00:19.7]} 31... Bf3 {[%clk
0:01:44.4]} 32. Kf1 {[%clk 0:00:18.6]} 32... Ke7 {[%clk 0:01:44.4]} 33. Ke1
{[%clk 0:00:17.8]} 33... Kd6 {[%clk 0:01:36.8]} 34. b4 {[%clk 0:00:18]} 34... h6
{[%clk 0:01:32.8]} 35. Bd3 {[%clk 0:00:17.5]} 35... Kc6 {[%clk 0:01:27.1]} 36.
a3 {[%clk 0:00:17.5]} 36... Kb6 {[%clk 0:01:26.9]} 37. Bc4 {[%clk 0:00:10.5]}
37... f6 {[%clk 0:01:25.8]} 38. Bd3 {[%clk 0:00:04.8]} 38... a5 {[%clk
0:01:25.9]} 39. Bf1 {[%clk 0:00:03.3]} 39... axb4 {[%clk 0:01:21.6]} 40. axb4
{[%clk 0:00:04.2]} 40... Bxe4 {[%clk 0:01:22]} 41. Kd1 {[%clk 0:00:04.5]} 41...
Kc6 {[%clk 0:01:14.3]} 42. Kc1 {[%clk 0:00:03.5]} 42... Kd5 {[%clk 0:01:11.1]}
43. Bxh3 {[%clk 0:00:03.6]} 43... Kc4 {[%clk 0:01:11]} 44. Bf1+ {[%clk
0:00:03.9]} 44... Kxb4 {[%clk 0:01:11.5]} 45. Be2 {[%clk 0:00:04.5]} 45... Kc5
{[%clk 0:01:09.9]} 46. Bf1 {[%clk 0:00:04.8]} 46... Kd4 {[%clk 0:01:10.4]} 47.
Be2 {[%clk 0:00:05.5]} 47... Bd3 {[%clk 0:01:10.4]} 48. Bf3 {[%clk 0:00:05.9]}
48... e4 {[%clk 0:01:10.8]} 49. Bg2 {[%clk 0:00:05.7]} 49... e3 {[%clk
0:01:11.1]} 50. fxe3+ {[%clk 0:00:06.1]} 50... Kxe3 {[%clk 0:01:12]} 51. Bd5
{[%clk 0:00:04.3]} 51... Kf2 {[%clk 0:01:12.2]} 52. g4 {[%clk 0:00:02.9]} 52...
Kg1 {[%clk 0:01:09.9]} 53. h4 {[%clk 0:00:03.1]} 53... Kf2 {[%clk 0:01:10.1]}
54. h5 {[%clk 0:00:03.4]} 54... Kg3 {[%clk 0:01:10.3]} 55. Be6 {[%clk 0:00:04]}
55... Kf4 {[%clk 0:01:10.3]} 56. Bd7 {[%clk 0:00:03.4]} 56... Kg5 {[%clk
0:01:05.6]} 57. Be6 {[%clk 0:00:02.6]} 57... Be2 {[%clk 0:01:04.3]} 58. Kc2
{[%clk 0:00:03.1]} 58... Bxg4 {[%clk 0:01:03.3]} 59. Bd5 {[%clk 0:00:03.7]}
59... Bxh5 {[%clk 0:00:53.4]} 60. Kxc3 {[%clk 0:00:04.2]} 60... Kf4 {[%clk
0:00:53.7]} 61. Kd2 {[%clk 0:00:04.7]} 61... Bf3 {[%clk 0:00:53.4]} 62. Be6
{[%clk 0:00:04.3]} 62... h5 {[%clk 0:00:51.6]} 63. Ke1 {[%clk 0:00:04.8]} 63...
Kg3 {[%clk 0:00:51.9]} 64. Kf1 {[%clk 0:00:04.4]} 64... h4 {[%clk 0:00:52]} 0-1

[Event "Early-Titled-Tuesday-Blitz-February-06-2024"]
[Site "Chess.com"]
[Date "2024.02.06"]
[Round "8"]
[White "Vaathi_Coming"]
[Black "Kildepiotr"]
[Result "0-1"]
[WhiteElo "2910"]
[BlackElo "2698"]
[TimeControl "180+1"]
[EndTime "9:28:39 PST"]
[Termination "Kildepiotr won on time"]

1. Nf3 {[%clk 0:02:46.5]} 1... d5 {[%clk 0:02:57.9]} 2. Rg1 {[%clk 0:02:46]}
2... c5 {[%clk 0:02:56.1]} 3. g4 {[%clk 0:02:45.7]} 3... Nc6 {[%clk 0:02:56.1]}
4. c4 {[%clk 0:02:43.7]} 4... d4 {[%clk 0:02:55.2]} 5. d3 {[%clk 0:02:42.7]}
5... e5 {[%clk 0:02:53.8]} 6. Nbd2 {[%clk 0:02:42.6]} 6... h5 {[%clk 0:02:48.3]}
7. g5 {[%clk 0:02:42.6]} 7... Nge7 {[%clk 0:02:47.6]} 8. Ne4 {[%clk 0:02:41.8]}
8... Ng6 {[%clk 0:02:45.2]} 9. e3 {[%clk 0:02:41.3]} 9... Bf5 {[%clk 0:02:35.1]}
10. Be2 {[%clk 0:02:36.8]} 10... Be7 {[%clk 0:02:28.6]} 11. Nfd2 {[%clk
0:02:20.9]} 11... dxe3 {[%clk 0:02:13.9]} 12. fxe3 {[%clk 0:02:17.3]} 12... Nb4
{[%clk 0:02:14.1]} 13. Qb3 {[%clk 0:02:12.1]} 13... a5 {[%clk 0:02:03.3]} 14. a3
{[%clk 0:02:00.5]} 14... a4 {[%clk 0:02:03.4]} 15. Qc3 {[%clk 0:01:59.8]} 15...
Nc6 {[%clk 0:02:02.6]} 16. Ng3 {[%clk 0:01:52.4]} 16... Bg4 {[%clk 0:01:59.2]}
17. Nde4 {[%clk 0:01:52.7]} 17... Bxe2 {[%clk 0:01:57.1]} 18. Kxe2 {[%clk
0:01:53.6]} 18... Qd7 {[%clk 0:01:52.1]} 19. Nh1 {[%clk 0:01:35.1]} 19... h4
{[%clk 0:01:39.5]} 20. Nhf2 {[%clk 0:01:14.6]} 20... h3 {[%clk 0:01:36.6]} 21.
Bd2 {[%clk 0:01:13.5]} 21... Rh4 {[%clk 0:01:31.7]} 22. Raf1 {[%clk 0:01:02.9]}
22... O-O-O {[%clk 0:01:28.1]} 23. Qc2 {[%clk 0:01:02]} 23... Nf8 {[%clk
0:01:17.5]} 24. Nc3 {[%clk 0:00:55]} 24... Kb8 {[%clk 0:00:46.2]} 25. Nfe4
{[%clk 0:00:52.6]} 25... Rg4 {[%clk 0:00:39.7]} 26. Be1 {[%clk 0:00:28.2]} 26...
Rxg1 {[%clk 0:00:38.8]} 27. Rxg1 {[%clk 0:00:28.4]} 27... Ne6 {[%clk 0:00:39]}
28. Nd5 {[%clk 0:00:27.3]} 28... Ned4+ {[%clk 0:00:38.7]} 29. exd4 {[%clk
0:00:26.3]} 29... Nxd4+ {[%clk 0:00:39.6]} 30. Kd1 {[%clk 0:00:27]} 30... Nxc2
{[%clk 0:00:40]} 31. Kxc2 {[%clk 0:00:27.9]} 31... Bf8 {[%clk 0:00:33.4]} 32.
Ba5 {[%clk 0:00:12.9]} 32... Re8 {[%clk 0:00:33.5]} 33. Bc7+ {[%clk 0:00:12.8]}
33... Qxc7 {[%clk 0:00:28.7]} 34. Nxc7 {[%clk 0:00:13.7]} 34... Kxc7 {[%clk
0:00:29.6]} 35. Rf1 {[%clk 0:00:14]} 35... Re7 {[%clk 0:00:24.3]} 36. Rf3 {[%clk
0:00:10.3]} 36... b6 {[%clk 0:00:19.8]} 37. Rxh3 {[%clk 0:00:09.5]} 37... Rd7
{[%clk 0:00:19.1]} 38. Rf3 {[%clk 0:00:06.3]} 38... g6 {[%clk 0:00:19.3]} 39.
Nf6 {[%clk 0:00:05.4]} 39... Rd4 {[%clk 0:00:15.1]} 40. Nd5+ {[%clk 0:00:01.1]}
40... Kc6 {[%clk 0:00:15.7]} 0-1

[Event "Early-Titled-Tuesday-Blitz-February-06-2024"]
[Site "Chess.com"]
[Date "2024.02.06"]
[Round "8"]
[White "vi_pranav"]
[Black "platy3"]
[Result "1-0"]
[WhiteElo "3060"]
[BlackElo "2928"]
[TimeControl "180+1"]
[EndTime "9:28:42 PST"]
[Termination "vi_pranav won by checkmate"]

1. e4 {[%clk 0:03:00.9]} 1... e5 {[%clk 0:02:59.8]} 2. Nf3 {[%clk 0:03:01.1]}
2... Nc6 {[%clk 0:03:00.4]} 3. Bb5 {[%clk 0:03:01.8]} 3... a6 {[%clk 0:03:00.3]}
4. Ba4 {[%clk 0:03:02.3]} 4... Nf6 {[%clk 0:03:00.3]} 5. O-O {[%clk 0:03:02.7]}
5... b5 {[%clk 0:03:00.5]} 6. Bb3 {[%clk 0:03:02.8]} 6... Bc5 {[%clk 0:03:01.4]}
7. c3 {[%clk 0:03:01.4]} 7... d6 {[%clk 0:03:00.3]} 8. d4 {[%clk 0:03:00.6]}
8... Bb6 {[%clk 0:03:00.7]} 9. Be3 {[%clk 0:03:01.2]} 9... O-O {[%clk
0:02:58.1]} 10. Nbd2 {[%clk 0:03:00.8]} 10... h6 {[%clk 0:02:56.9]} 11. h3
{[%clk 0:03:00.2]} 11... Re8 {[%clk 0:02:56.5]} 12. Re1 {[%clk 0:02:57.7]} 12...
Rb8 {[%clk 0:02:56]} 13. Nf1 {[%clk 0:02:43.6]} 13... exd4 {[%clk 0:02:33.6]}
14. cxd4 {[%clk 0:02:43.7]} 14... Nxe4 {[%clk 0:02:33.5]} 15. Bd5 {[%clk
0:02:20.4]} 15... Bb7 {[%clk 0:02:02.3]} 16. Bxh6 {[%clk 0:01:42.6]} 16... gxh6
{[%clk 0:02:01.8]} 17. Bxe4 {[%clk 0:01:40.4]} 17... Qf6 {[%clk 0:02:02]} 18.
Ng3 {[%clk 0:01:07.9]} 18... Nxd4 {[%clk 0:01:36.5]} 19. Bxb7 {[%clk 0:01:05.2]}
19... Rxe1+ {[%clk 0:01:29.6]} 20. Qxe1 {[%clk 0:01:03.7]} 20... Nc2 {[%clk
0:01:24.7]} 21. Qc1 {[%clk 0:00:57.2]} 21... Nxa1 {[%clk 0:01:22.9]} 22. Be4
{[%clk 0:00:57.7]} 22... Re8 {[%clk 0:01:14.5]} 23. Qxa1 {[%clk 0:00:49.4]}
23... Re5 {[%clk 0:00:25.6]} 24. Qd1 {[%clk 0:00:36.7]} 24... Rc5 {[%clk
0:00:24.1]} 25. Qd2 {[%clk 0:00:31]} 25... Kf8 {[%clk 0:00:23.4]} 26. Kh2 {[%clk
0:00:20.2]} 26... Qe6 {[%clk 0:00:13]} 27. b4 {[%clk 0:00:16.3]} 27... Rc4
{[%clk 0:00:02.7]} 28. Bd5 {[%clk 0:00:16.7]} 28... Rc2 {[%clk 0:00:03.3]} 29.
Qxc2 {[%clk 0:00:12.7]} 29... Qxd5 {[%clk 0:00:04]} 30. Qh7 {[%clk 0:00:08.5]}
30... Bxf2 {[%clk 0:00:03.4]} 31. Nf5 {[%clk 0:00:08.2]} 31... Ke8 {[%clk
0:00:02.8]} 32. Qh8+ {[%clk 0:00:04.3]} 32... Kd7 {[%clk 0:00:03.1]} 33. Qf6
{[%clk 0:00:05]} 33... Qxa2 {[%clk 0:00:01.3]} 34. Qe7+ {[%clk 0:00:04.8]} 34...
Kc6 {[%clk 0:00:02]} 35. Qe8+ {[%clk 0:00:04.4]} 35... Kb6 {[%clk 0:00:02.5]}
36. Ne7 {[%clk 0:00:05.1]} 36... Kb7 {[%clk 0:00:02.6]} 37. Qc8+ {[%clk
0:00:04.9]} 37... Kb6 {[%clk 0:00:02.7]} 38. Qb8# {[%clk 0:00:05.1]} 1-0

[Event "Early-Titled-Tuesday-Blitz-February-06-2024"]
[Site "Chess.com"]
[Date "2024.02.06"]
[Round "8"]
[White "UK_23"]
[Black "boguszp"]
[Result "1/2-1/2"]
[WhiteElo "2385"]
[BlackElo "2102"]
[TimeControl "180+1"]
[EndTime "9:28:42 PST"]
[Termination "Game drawn by agreement"]

1. e4 {[%clk 0:03:00.1]} 1... c6 {[%clk 0:02:59.4]} 2. Nc3 {[%clk 0:02:59.8]}
2... d5 {[%clk 0:02:59.9]} 3. Nf3 {[%clk 0:03:00.4]} 3... Bg4 {[%clk 0:02:58.8]}
4. h3 {[%clk 0:03:00.2]} 4... Bxf3 {[%clk 0:02:58.9]} 5. Qxf3 {[%clk 0:03:00.1]}
5... e6 {[%clk 0:02:59.4]} 6. Be2 {[%clk 0:03:00.4]} 6... Nf6 {[%clk 0:02:59.2]}
7. O-O {[%clk 0:03:00.5]} 7... Be7 {[%clk 0:02:55]} 8. Rd1 {[%clk 0:03:00.6]}
8... O-O {[%clk 0:02:53.8]} 9. d4 {[%clk 0:03:01.1]} 9... dxe4 {[%clk
0:02:52.7]} 10. Nxe4 {[%clk 0:03:02]} 10... Nbd7 {[%clk 0:02:52.2]} 11. a4
{[%clk 0:03:00.4]} 11... Nxe4 {[%clk 0:02:51.1]} 12. Qxe4 {[%clk 0:03:00.5]}
12... Nf6 {[%clk 0:02:51.7]} 13. Qd3 {[%clk 0:03:01.2]} 13... c5 {[%clk
0:02:48.3]} 14. dxc5 {[%clk 0:02:56.1]} 14... Bxc5 {[%clk 0:02:45.7]} 15. Qc4
{[%clk 0:02:44.4]} 15... Qb6 {[%clk 0:02:44.9]} 16. Qh4 {[%clk 0:02:31.6]} 16...
Rad8 {[%clk 0:02:39.8]} 17. a5 {[%clk 0:02:31.7]} 17... Rxd1+ {[%clk 0:02:31]}
18. Bxd1 {[%clk 0:02:32.6]} 18... Qd6 {[%clk 0:02:30.8]} 19. Bf4 {[%clk
0:02:26.6]} 19... Qd4 {[%clk 0:02:27.3]} 20. c3 {[%clk 0:02:23.7]} 20... Qd3
{[%clk 0:02:15.1]} 21. Bf3 {[%clk 0:02:21.3]} 21... Qf5 {[%clk 0:02:09.9]} 22.
Bxb7 {[%clk 0:02:16.2]} 22... e5 {[%clk 0:02:03.9]} 23. Qg5 {[%clk 0:02:06.2]}
23... Qxf4 {[%clk 0:02:02]} 24. Qxf4 {[%clk 0:02:04.2]} 24... exf4 {[%clk
0:02:02]} 25. b4 {[%clk 0:02:02.9]} 25... Bd6 {[%clk 0:01:56.5]} 26. Rd1 {[%clk
0:02:02.6]} 26... Rd8 {[%clk 0:01:51.9]} 27. Kf1 {[%clk 0:02:02.6]} 27... g5
{[%clk 0:01:48.4]} 28. c4 {[%clk 0:01:59.9]} 28... Rd7 {[%clk 0:01:44.1]} 29.
Bc6 {[%clk 0:01:57.3]} 29... Rd8 {[%clk 0:01:42.4]} 30. b5 {[%clk 0:01:53.6]}
30... Bc7 {[%clk 0:01:39.6]} 31. Ra1 {[%clk 0:01:42.2]} 31... Rd4 {[%clk
0:01:39.2]} 32. b6 {[%clk 0:01:39]} 32... axb6 {[%clk 0:01:38.8]} 33. a6 {[%clk
0:01:39.6]} 33... Bb8 {[%clk 0:01:27.6]} 34. Bb5 {[%clk 0:01:36.2]} 34... Ba7
{[%clk 0:01:25.6]} 35. Re1 {[%clk 0:01:34.4]} 35... Re4 {[%clk 0:01:23.9]} 36.
Rd1 {[%clk 0:01:34.2]} 36... Re7 {[%clk 0:01:18.9]} 37. Rd8+ {[%clk 0:01:31.9]}
37... Kg7 {[%clk 0:01:18.4]} 38. Ra8 {[%clk 0:01:27.7]} 38... Ne4 {[%clk
0:01:18]} 39. Bc6 {[%clk 0:01:22.1]} 39... Nd2+ {[%clk 0:01:17.3]} 40. Kg1
{[%clk 0:01:22.6]} 40... Nxc4 {[%clk 0:01:16.9]} 41. Bb7 {[%clk 0:01:22.6]}
41... Nd6 {[%clk 0:01:11.6]} 42. Rxa7 {[%clk 0:01:22]} 42... Kf6 {[%clk
0:01:04]} 43. Kf1 {[%clk 0:01:20.4]} 43... Ke5 {[%clk 0:01:02.7]} 44. g3 {[%clk
0:01:13]} 44... Kd4 {[%clk 0:00:59.4]} 45. Ra8 {[%clk 0:01:10.7]} 45... Nxb7
{[%clk 0:00:58.2]} 46. a7 {[%clk 0:01:10.9]} 46... Nd6 {[%clk 0:00:56]} 47. gxf4
{[%clk 0:01:05.4]} 47... gxf4 {[%clk 0:00:55.4]} 48. Rd8 {[%clk 0:01:05.9]}
48... Rxa7 {[%clk 0:00:55]} 49. Rxd6+ {[%clk 0:01:06.5]} 49... Ke5 {[%clk
0:00:55.1]} 50. Rxb6 {[%clk 0:01:06.6]} 50... f3 {[%clk 0:00:53.8]} 51. Kg1
{[%clk 0:01:05.8]} 51... f5 {[%clk 0:00:51.1]} 52. Rh6 {[%clk 0:01:03.4]} 52...
f4 {[%clk 0:00:50.4]} 53. Kh2 {[%clk 0:01:00.8]} 53... Rg7 {[%clk 0:00:49]} 54.
Kh1 {[%clk 0:00:58.8]} 54... Rg2 {[%clk 0:00:47]} 55. Rxh7 {[%clk 0:00:57.4]}
55... Rxf2 {[%clk 0:00:47]} 56. Kg1 {[%clk 0:00:55.5]} 56... Rg2+ {[%clk
0:00:44.8]} 57. Kf1 {[%clk 0:00:56.1]} 57... Ra2 {[%clk 0:00:43.4]} 58. h4
{[%clk 0:00:55.5]} 58... f2 {[%clk 0:00:40.6]} 59. h5 {[%clk 0:00:55.2]} 59...
Ke4 {[%clk 0:00:40.5]} 60. Rb7 {[%clk 0:00:49.5]} 60... Kf3 {[%clk 0:00:33.3]}
61. Rb3+ {[%clk 0:00:49.3]} 61... Kg4 {[%clk 0:00:33.1]} 62. h6 {[%clk
0:00:49.7]} 62... Ra7 {[%clk 0:00:26.9]} 63. Kxf2 {[%clk 0:00:46.4]} 63... Rh7
{[%clk 0:00:24.7]} 64. Rb6 {[%clk 0:00:46.6]} 64... Kg5 {[%clk 0:00:25.2]} 65.
Kf3 {[%clk 0:00:46.7]} 65... Rxh6 {[%clk 0:00:25.1]} 66. Rb5+ {[%clk 0:00:46.5]}
66... Kg6 {[%clk 0:00:24.8]} 67. Kxf4 {[%clk 0:00:47.1]} 67... Rh4+ {[%clk
0:00:23.3]} 68. Kg3 {[%clk 0:00:47.3]} 68... Rc4 {[%clk 0:00:22.9]} 1/2-1/2